fUST/lending_fUST_20250906
["ID","MTS","AMOUNT","RATE_DAILY","PERIOD"]
[383815751,1757127052775,-339.98534682,0.00013972,2]
[383815805,1757127053332,-151.0,0.0001369,2]
[383815807,1757127053342,-151.0,0.0001369,2]
[383815809,1757127053351,-151.0,0.0001369,2]
[383815811,1757127053361,-480.0,0.00013698,2]
[383815813,1757127053370,-140.01465318,0.00013972,2]
[383815815,1757127053381,-480.0,0.00013972,2]
[383815817,1757127053391,-480.0,0.00013972,2]
[383815819,1757127053400,-480.0,0.00013972,2]
[383815821,1757127053409,-55.09573124,0.00013972,2]
[383816153,1757127482091,163.70506268,0.00012746,2]
[383816154,1757127533277,546.90458944,0.0001266,2]
[383816155,1757127533305,6970.21927156,0.0001266,2]
[383816156,1757127533856,-163.70506268,0.0001314,2]
[383816157,1757127602347,163.70506268,0.0001274,2]
[383816158,1757127603779,-163.70506269,0.00013134,2]
[383816159,1757127663504,-163.70506268,0.00013134,2]
[383816160,1757127837626,2439.0,0.00013092,2]
[383816161,1757127889308,427.08566576,0.00012646,2]
[383816162,1757127889330,3915.22320804,0.00012646,2]
[383816163,1757127946601,558.01,0.00013062,2]
[383816344,1757128232239,376.59476358,0.0001261,2]
[383816351,1757128232715,-2439.0,0.00013194,2]
[383816352,1757128232725,-2439.0,0.00013207,2]
[383816353,1757128232735,-2286.60207498,0.00013213,2]
[383816356,1757128234666,1504.87267527,0.0001261,2]
[383816688,1757128241268,3645.30935311,0.0001311,2]
[383816691,1757128241289,6354.69064689,0.0001311,2]
[383817071,1757128246868,-152.39792502,0.00013213,2]
[383817072,1757128246881,-300.0,0.00013272,2]
[383817073,1757128246894,-300.0,0.00013272,2]
[383817074,1757128246903,-32.87050506,0.00013272,2]
[383817097,1757128257035,-273.18784151,0.00013139,2]
[383817098,1757128258007,3645.31935311,0.0001311,2]
[383817099,1757128258031,6354.68064689,0.0001311,2]
[383817101,1757128259382,-339.74660172,0.00013139,2]
[383817135,1757128462809,273.18784151,0.00013008,2]
[383817138,1757128640523,919.0,0.0001305,2]
[383817139,1757128645072,919.0,0.00013057,2]
[383817140,1757128665336,919.0,0.00013058,2]
[383817141,1757128688187,373.47536958,0.00013082,2]
[383817142,1757128712019,241.66614202,0.00013082,2]
[383817143,1757128712042,131.80922756,0.00013082,2]
[383817144,1757128736104,216.4789034,0.00013082,2]
[383817145,1757128759458,373.47536958,0.00013082,2]
[383817146,1757128793344,9278.24649946,0.00012531,2]
[383817147,1757128793369,4655.35111024,0.00012531,2]
[383817148,1757128805808,373.47536958,0.00013082,2]
[383817149,1757128814239,373.47536958,0.00013082,2]
[383817150,1757128829555,373.47536958,0.00013082,2]
[383817151,1757128845309,373.47536958,0.00013082,2]
[383817152,1757129041770,666.0,0.00012429,2]
[383817153,1757129056319,324.7183551,0.00013008,2]
[383817154,1757129081303,-287.06555677,0.00013138,2]
[383817155,1757129083544,-12.93444323,0.00013138,2]
[383817156,1757129105336,-287.06555677,0.00013139,2]
[383817251,1757129305189,382.96600597,0.00013008,2]
[383817274,1757129431754,-300.0,0.00013138,2]
[383817275,1757129431764,-300.0,0.00013271,2]
[383817276,1757129431773,-1200.0,0.00013271,2]
[383817277,1757129431783,-166.0,0.00013272,2]
[383817278,1757129431793,-1576.0,0.00013272,2]
[383817279,1757129431802,-1576.0,0.00013272,2]
[383817280,1757129431811,-1576.0,0.00013272,2]
[383817282,1757129431821,-1576.0,0.00013272,2]
[383817283,1757129431830,-1576.0,0.00013272,2]
[383817284,1757129431839,-1576.0,0.00013272,2]
[383817285,1757129431849,-1576.0,0.00013272,2]
[383817286,1757129431859,-1576.0,0.00013272,2]
[383817287,1757129431869,-1576.0,0.00013272,2]
[383817289,1757129431879,-1661.2273641,0.00013272,2]
[383817292,1757129431888,-1576.0,0.00013272,2]
[383817294,1757129431897,-1576.0,0.00013272,2]
[383817296,1757129431907,-1576.0,0.00013272,2]
[383817298,1757129431916,-19041.53734725,0.00013272,2]
[383817886,1757129507548,168.0,0.00012974,2]
[383817888,1757129553451,681.0019812,0.00012515,2]
[383817889,1757129642586,-245.85405265,0.00013272,2]
[383817946,1757130596149,-784.37380728,0.00013273,2]
[383817947,1757130596685,-3134.35773391,0.00013273,2]
[383817948,1757130596718,-919.0,0.00013348,2]
[383817949,1757130596921,-919.0,0.00013351,2]
[383817950,1757130596952,-919.0,0.00013447,2]
[383817951,1757130596984,-168.0,0.0001345,2]
[383817952,1757130597014,-2968.35479998,0.00013493,2]
[383817953,1757130597274,-51.30040004,0.00013493,2]
[383817954,1757130597306,-168.0,0.00013497,2]
[383817955,1757130597337,-300.0,0.00013497,2]
[383817956,1757130597366,-1200.0,0.00013498,2]
[383817957,1757130597394,-1073.0,0.00013498,2]
[383817958,1757130597439,-4790.65985862,0.000135,2]
[383817959,1757130597470,-418.69028276,0.000135,2]
[383817960,1757130597498,-1167.11521957,0.00013536,2]
[383817961,1757130597528,-919.0,0.00013536,2]
[383817962,1757130597556,-919.0,0.00013538,2]
[383817963,1757130597586,-168.0,0.00013559,2]
[383817964,1757130618826,1000.0,0.0001268,2]
[383818317,1757130637827,-1076.0964,0.0001359,2]
[383818324,1757130637881,-2353.73678254,0.0001359,2]
[383818326,1757130637890,-280.0,0.00013597,2]
[383818328,1757130637900,-66.09858858,0.00013597,2]
[383818330,1757130637912,-233.90141142,0.00013597,2]
[383818332,1757130637921,-2113.37849199,0.00013598,2]
[383818335,1757130637938,-5480.72226878,0.00013598,2]
[383818337,1757130637949,-6195.54282153,0.00013598,2]
[383818339,1757130637959,-9370.4845576,0.00013661,2]
[383818341,1757130637968,-500.0,0.00013673,2]
[383818343,1757130637977,-500.0,0.00013673,2]
[383818345,1757130637987,-500.72062305,0.00013673,2]
[383818347,1757130637996,-500.0,0.00013673,2]
[383818348,1757130638006,-500.0,0.00013673,2]
[383818350,1757130638016,-500.0,0.00013673,2]
[383818353,1757130638027,-500.0,0.00013673,2]
[383818354,1757130638036,-150.13359646,0.00013673,2]
[383818356,1757130638046,-500.0,0.00013673,2]
[383818358,1757130638055,-500.0,0.00013673,2]
[383818360,1757130638065,-500.0,0.00013673,2]
[383818362,1757130638074,-500.9375673,0.00013673,2]
[383818364,1757130638084,-500.0,0.00013673,2]
[383818366,1757130638093,-151.0,0.00013682,2]
[383818368,1757130638103,-181.08010149,0.00013682,2]
[383818370,1757130638112,-151.0,0.00013682,2]
[383818372,1757130638121,-151.0,0.00013682,2]
[383818374,1757130638131,-151.0,0.00013682,2]
[383818376,1757130638140,-151.0,0.00013682,2]
[383818378,1757130638149,-239.55903663,0.00013682,2]
[383818380,1757130638158,-607.60242429,0.0001369,2]
[383819028,1757130646081,-250.94284638,0.0001369,2]
[383819029,1757130646092,-441.6080201,0.0001369,2]
[383819031,1757130805556,3106.9249914,0.0001264,2]
[383819032,1757130887442,171.621061,6.315e-05,2]
[383819033,1757130887645,171.621061,8.42e-05,2]
[383819034,1757130887839,171.621061,0.00010525,2]
[383819035,1757130888045,171.621061,0.0001263,2]
[383819036,1757130991402,301.6299129,0.00012585,2]
[383819037,1757131141256,503.34799522,0.0001269,2]
[383819038,1757131261435,500.0,0.0001269,2]
[383819039,1757131382910,500.0,0.0001269,2]
[383819040,1757131391025,500.0,0.0001269,2]
[383819041,1757131398134,2901.62285648,0.00012589,2]
[383819042,1757131398157,7098.37714352,0.00012589,2]
[383819043,1757131499495,500.0,0.0001269,2]
[383819044,1757131507699,500.0,0.0001269,2]
[383819045,1757131515808,500.0,0.0001269,2]
[383819046,1757131523452,500.0,0.0001269,2]
[383819047,1757131531800,500.0,0.0001269,2]
[383819048,1757131539892,401.63285648,0.0001269,2]
[383819049,1757131539915,98.36714352,0.0001269,2]
[383819050,1757131547484,591.32261833,0.0001269,2]
[383819051,1757131573121,208.8446233,0.00012581,2]
[383819566,1757131838192,-1085.73153073,0.0001324,2]
[383819569,1757131838205,-300.0,0.00013312,2]
[383819571,1757131838216,-28384.2558241,0.00013313,2]
[383819574,1757131838229,-800.0,0.00013333,2]
[383819576,1757131838241,-800.0,0.00013338,2]
[383819578,1757131838253,-800.0,0.0001334,2]
[383819580,1757131838265,-800.0,0.00013382,2]
[383819583,1757131838275,-800.0,0.00013389,2]
[383819585,1757131838287,-800.0,0.00013394,2]
[383819587,1757131838298,-800.0,0.000134,2]
[383819590,1757131838311,-800.0,0.00013411,2]
[383819592,1757131838323,-800.0,0.00013413,2]
[383819594,1757131838336,-800.0,0.00013429,2]
[383819596,1757131838347,-600.0,0.00013446,2]
[383819599,1757131838361,-800.0,0.0001347,2]
[383819601,1757131838375,-800.0,0.00013494,2]
[383819604,1757131838387,-800.0,0.00013517,2]
[383819606,1757131838400,-800.0,0.00013517,2]
[383819608,1757131838409,-800.0,0.00013519,2]
[383819610,1757131838420,-151.0,0.00013519,2]
[383819612,1757131838431,-242.327953,0.00013519,2]
[383819615,1757131838443,-254.952377,0.00013519,2]
[383819617,1757131838457,-151.0,0.00013519,2]
[383819620,1757131838470,-254.952377,0.00013519,2]
[383819622,1757131838481,-254.952377,0.00013519,2]
[383819624,1757131838493,-254.952377,0.00013519,2]
[383819626,1757131838504,-800.0,0.0001353,2]
[383819629,1757131838516,-207.78093407,0.00013556,2]
[383819631,1757131838529,-151.0,0.00013556,2]
[383819633,1757131838539,-151.0,0.00013556,2]
[383819636,1757131838550,-151.0,0.00013556,2]
[383819638,1757131838563,-151.0,0.00013556,2]
[383819640,1757131838578,-151.0,0.00013556,2]
[383819642,1757131838588,-151.0,0.00013556,2]
[383819644,1757131838599,-151.0,0.00013556,2]
[383819647,1757131838611,-151.0,0.00013556,2]
[383819649,1757131838622,-181.08010149,0.00013556,2]
[383819651,1757131838633,-151.0,0.00013556,2]
[383819653,1757131838645,-151.0,0.00013556,2]
[383819656,1757131838656,-151.0,0.00013556,2]
[383819658,1757131838667,-151.0,0.00013556,2]
[383819660,1757131838678,-6969.97356543,0.00013556,2]
[383819662,1757131838689,-34334.5292213,0.00013564,2]
[383819664,1757131838700,-2557.3666754,0.00013564,2]
[383819665,1757131838711,-155.149743,0.00013564,2]
[383819666,1757131838722,-254.952377,0.00013564,2]
[383819668,1757131838733,-151.0,0.00013564,2]
[383819670,1757131838745,-254.952377,0.00013564,2]
[383819672,1757131838755,-254.952377,0.00013564,2]
[383819674,1757131838766,-254.952377,0.00013564,2]
[383819676,1757131838777,-200.0,0.00013565,2]
[383819678,1757131838788,-800.0,0.00013579,2]
[383819680,1757131838799,-168.0,0.0001358,2]
[383819683,1757131838810,-241.0,0.0001359,2]
[383819685,1757131838821,-151.0,0.0001359,2]
[383819687,1757131838832,-151.0,0.0001359,2]
[383819689,1757131838843,-151.0,0.0001359,2]
[383819692,1757131838854,-151.0,0.0001359,2]
[383819694,1757131838865,-151.0,0.0001359,2]
[383819696,1757131838878,-151.0,0.0001359,2]
[383819698,1757131838890,-200.4746,0.0001359,2]
[383819701,1757131838901,-151.0,0.0001359,2]
[383819703,1757131838912,-151.0,0.0001359,2]
[383819705,1757131838925,-151.0,0.0001359,2]
[383819707,1757131838940,-152.698812,0.0001359,2]
[383819709,1757131838951,-151.60632,0.0001359,2]
[383819712,1757131838962,-151.0,0.0001359,2]
[383819714,1757131838975,-151.0,0.0001359,2]
[383819716,1757131838986,-151.0,0.0001359,2]
[383819718,1757131839001,-189.471751,0.0001359,2]
[383819720,1757131839012,-189.471751,0.0001359,2]
[383819722,1757131839023,-189.471751,0.0001359,2]
[383819724,1757131839034,-189.471751,0.0001359,2]
[383819727,1757131839047,-189.471751,0.0001359,2]
[383819729,1757131839058,-189.471751,0.0001359,2]
[383819731,1757131839070,-189.471751,0.0001359,2]
[383819733,1757131839082,-189.471751,0.0001359,2]
[383819735,1757131839093,-189.471751,0.0001359,2]
[383819738,1757131839104,-151.0,0.0001359,2]
[383819740,1757131839116,-151.0,0.0001359,2]
[383819742,1757131839127,-151.0,0.0001359,2]
[383819744,1757131839137,-189.471751,0.0001359,2]
[383819746,1757131839149,-189.471751,0.0001359,2]
[383819749,1757131839161,-151.0,0.0001359,2]
[383819751,1757131839173,-189.471751,0.0001359,2]
[383819753,1757131839184,-151.63298,0.0001359,2]
[383819755,1757131839196,-151.870715,0.0001359,2]
[383819758,1757131839208,-151.0,0.0001359,2]
[383819760,1757131839219,-151.0,0.0001359,2]
[383819762,1757131839229,-151.0,0.0001359,2]
[383819764,1757131839239,-151.0,0.0001359,2]
[383819766,1757131839249,-163.379314,0.0001359,2]
[383819768,1757131839258,-151.0,0.0001359,2]
[383819770,1757131839267,-153.876622,0.0001359,2]
[383819772,1757131839276,-153.136037,0.0001359,2]
[383819774,1757131839285,-151.471047,0.0001359,2]
[383819776,1757131839294,-153.015062,0.0001359,2]
[383819778,1757131839303,-151.0,0.0001359,2]
[383819800,1757131839493,-475.15738428,0.0001359,2]
[383819803,1757131839507,-151.913193,0.0001359,2]
[383819805,1757131839518,-154.025601,0.0001359,2]
[383819807,1757131839527,-151.0,0.0001359,2]
[383819809,1757131839537,-151.0,0.0001359,2]
[383819812,1757131839546,-151.0,0.0001359,2]
[383819814,1757131839556,-154.436338,0.0001359,2]
[383819816,1757131839566,-151.481648,0.0001359,2]
[383819818,1757131839576,-151.0,0.0001359,2]
[383819820,1757131839586,-294.791901,0.0001359,2]
[383819822,1757131839595,-157.0,0.0001359,2]
[383819824,1757131839604,-287.11708776,0.0001359,2]
[383819826,1757131839614,-157.0,0.0001359,2]
[383819828,1757131839623,-157.0,0.0001359,2]
[383819830,1757131839633,-500.0,0.0001359,2]
[383819832,1757131839643,-151.0,0.0001359,2]
[383819834,1757131839652,-155.019658,0.0001359,2]
[383819836,1757131839661,-163.401275,0.0001359,2]
[383819838,1757131839670,-254.952377,0.0001359,2]
[383819840,1757131839680,-254.952377,0.0001359,2]
[383819842,1757131839689,-254.952377,0.0001359,2]
[383819844,1757131839699,-153.085669,0.0001359,2]
[383819846,1757131839708,-254.952377,0.0001359,2]
[383819848,1757131839717,-254.952377,0.0001359,2]
[383819850,1757131839726,-254.952377,0.0001359,2]
[383819852,1757131839736,-254.952377,0.0001359,2]
[383819854,1757131839745,-254.952377,0.0001359,2]
[383819856,1757131839754,-254.952377,0.0001359,2]
[383819858,1757131839763,-254.952377,0.0001359,2]
[383819860,1757131839773,-254.952377,0.0001359,2]
[383819862,1757131839782,-254.952376,0.0001359,2]
[383819865,1757131839791,-10000.01,0.0001359,2]
[383819867,1757131839801,-500.0,0.00013597,2]
[383819869,1757131839810,-500.0,0.00013597,2]
[383819871,1757131839819,-500.0,0.00013597,2]
[383819873,1757131839828,-500.0,0.00013597,2]
[383819875,1757131839838,-616.12616832,0.00013597,2]
[383819877,1757131839847,-539.66350384,0.00013597,2]
[383819879,1757131839856,-500.0,0.00013597,2]
[383819881,1757131839866,-500.0,0.00013597,2]
[383819883,1757131839875,-500.0,0.00013597,2]
[383819885,1757131839885,-500.0,0.00013597,2]
[383819887,1757131839894,-500.0,0.00013597,2]
[383819889,1757131839903,-500.0,0.00013597,2]
[383819891,1757131839912,-500.0,0.00013597,2]
[383819893,1757131839922,-500.0,0.00013597,2]
[383819895,1757131839932,-367.52639287,0.00013597,2]
[383819897,1757131839942,-500.0,0.00013597,2]
[383819899,1757131839951,-500.0,0.00013597,2]
[383819901,1757131839961,-500.0,0.00013597,2]
[383819903,1757131839972,-500.0,0.00013597,2]
[383819905,1757131839982,-500.0,0.00013597,2]
[383819907,1757131839991,-500.0,0.00013597,2]
[383819909,1757131840001,-500.0,0.00013597,2]
[383819911,1757131840011,-500.0,0.00013597,2]
[383819913,1757131840020,-162.38891469,0.00013597,2]
[383819915,1757131840030,-500.0,0.00013597,2]
[383819917,1757131840040,-500.0,0.00013597,2]
[383819920,1757131840050,-332.88566551,0.00013597,2]
[383819923,1757131840060,-480.20108095,0.00013597,2]
[383819926,1757131840070,-500.0,0.00013597,2]
[383819929,1757131840079,-227.36406768,0.00013597,2]
[383819932,1757131840089,-500.0,0.00013597,2]
[383819934,1757131840098,-500.0,0.00013597,2]
[383819936,1757131840107,-500.0,0.00013597,2]
[383819938,1757131840115,-500.0,0.00013597,2]
[383819940,1757131840125,-500.0,0.00013597,2]
[383819942,1757131840135,-500.0,0.00013597,2]
[383819944,1757131840144,-500.0,0.00013597,2]
[383819947,1757131840154,-500.0,0.00013597,2]
[383819949,1757131840163,-189.65850591,0.00013597,2]
[383819951,1757131840172,-500.0,0.00013597,2]
[383819953,1757131840181,-500.0,0.00013597,2]
[383819955,1757131840191,-500.0,0.00013597,2]
[383819957,1757131840200,-500.0,0.00013597,2]
[383819959,1757131840209,-500.0,0.00013597,2]
[383819961,1757131840218,-500.0,0.00013597,2]
[383819963,1757131840226,-151.0,0.00013598,2]
[383819965,1757131840236,-151.0,0.00013598,2]
[383819967,1757131840245,-151.0,0.00013598,2]
[383819969,1757131840254,-151.0,0.00013598,2]
[383819970,1757131840263,-151.0,0.00013598,2]
[383819972,1757131840272,-189.471751,0.00013598,2]
[383819975,1757131840282,-189.471751,0.00013598,2]
[383819976,1757131840291,-189.471751,0.00013598,2]
[383819980,1757131840300,-151.0,0.00013598,2]
[383819982,1757131840310,-189.471751,0.00013598,2]
[383819984,1757131840319,-151.0,0.00013598,2]
[383819986,1757131840329,-9193.09572154,0.00013598,2]
[383819988,1757131840338,-500.0,0.00013598,2]
[383819989,1757131840348,-800.0,0.00013614,2]
[383819992,1757131840358,-475.15738428,0.00013661,2]
[383819993,1757131840367,-154.272388,0.0001367,2]
[383819995,1757131840376,-189.471751,0.0001367,2]
[383819997,1757131840385,-189.471751,0.0001367,2]
[383820000,1757131840395,-189.471751,0.0001367,2]
[383820002,1757131840404,-151.0,0.0001367,2]
[383820004,1757131840413,-189.471757,0.0001367,2]
[383820005,1757131840423,-239.69369791,0.00013671,2]
[383820007,1757131840432,-157.0,0.00013671,2]
[383820009,1757131840445,-157.0,0.00013671,2]
[383820011,1757131840454,-251.01570411,0.00013671,2]
[383820013,1757131840465,-151.0,0.00013672,2]
[383820015,1757131840474,-151.0,0.00013672,2]
[383820018,1757131840484,-151.0,0.00013672,2]
[383820020,1757131840493,-151.0,0.00013672,2]
[383820022,1757131840503,-151.0,0.00013672,2]
[383820024,1757131840512,-151.0,0.00013672,2]
[383820026,1757131840522,-151.0,0.00013672,2]
[383820028,1757131840531,-151.0,0.00013672,2]
[383820030,1757131840540,-500.0,0.00013673,2]
[383820032,1757131840549,-500.0,0.00013673,2]
[383820034,1757131840559,-348.37500587,0.00013673,2]
[383820036,1757131840572,-500.90828003,0.00013673,2]
[383820038,1757131840581,-500.2455451,0.00013673,2]
[383820040,1757131840591,-501.23191424,0.00013673,2]
[383820041,1757131840600,-500.0,0.00013673,2]
[383820043,1757131840610,-500.0,0.00013673,2]
[383820045,1757131840619,-500.86578139,0.00013673,2]
[383820047,1757131840629,-500.0,0.00013673,2]
[383820049,1757131840638,-342.6169386,0.00013673,2]
[383820051,1757131840647,-500.0,0.00013673,2]
[383820053,1757131840657,-500.0,0.00013673,2]
[383820055,1757131840666,-500.0,0.00013673,2]
[383820057,1757131840675,-500.0,0.00013673,2]
[383820059,1757131840684,-500.89418515,0.00013673,2]
[383820061,1757131840694,-500.0,0.00013673,2]
[383820063,1757131840703,-500.0,0.00013673,2]
[383820065,1757131840712,-500.0,0.00013673,2]
[383820068,1757131840723,-500.0,0.00013673,2]
[383820069,1757131840733,-500.0,0.00013673,2]
[383820071,1757131840742,-500.0,0.00013673,2]
[383820073,1757131840752,-500.8031173,0.00013673,2]
[383820075,1757131840761,-501.17386056,0.00013673,2]
[383820077,1757131840770,-501.27154966,0.00013673,2]
[383820079,1757131840779,-500.0,0.00013673,2]
[383820081,1757131840789,-500.0,0.00013673,2]
[383820084,1757131840799,-500.85821136,0.00013673,2]
[383820085,1757131840808,-500.0,0.00013673,2]
[383820087,1757131840817,-500.0,0.00013673,2]
[383820089,1757131840826,-179.20971615,0.00013673,2]
[383820091,1757131840836,-716.12202572,0.00013673,2]
[383820093,1757131840845,-2630.54483749,0.0001369,2]
[383820095,1757131840855,-1790.5223145,0.00013692,2]
[383820097,1757131840864,-19361.32155058,0.00013695,2]
[383820099,1757131840873,-533.94503832,0.00013697,2]
[383820101,1757131840882,-500.0,0.00013697,2]
[383820104,1757131840892,-365.87052232,0.00013697,2]
[383820106,1757131840902,-500.0,0.00013697,2]
[383820108,1757131840911,-500.0,0.00013697,2]
[383820110,1757131840920,-500.0,0.00013697,2]
[383820112,1757131840930,-500.0,0.00013697,2]
[383820114,1757131840939,-364.91149844,0.00013697,2]
[383820115,1757131840948,-500.0,0.00013697,2]
[383820117,1757131840957,-500.0,0.00013697,2]
[383820119,1757131840967,-500.0,0.00013697,2]
[383820122,1757131840976,-500.0,0.00013697,2]
[383820123,1757131840986,-500.0,0.00013697,2]
[383820125,1757131840995,-500.0,0.00013697,2]
[383820127,1757131841004,-500.0,0.00013697,2]
[383820129,1757131841013,-500.0,0.00013697,2]
[383820131,1757131841023,-500.0,0.00013697,2]
[383820133,1757131841032,-500.0,0.00013697,2]
[383820135,1757131841042,-500.0,0.00013697,2]
[383820137,1757131841051,-650.0,0.00013697,2]
[383820139,1757131841060,-500.0,0.00013697,2]
[383820141,1757131841069,-480.0,0.00013698,2]
[383820143,1757131841078,-480.0,0.00013698,2]
[383820145,1757131841087,-480.0,0.00013698,2]
[383820147,1757131841096,-480.34879409,0.00013698,2]
[383820149,1757131841106,-480.0,0.00013698,2]
[383820151,1757131841115,-480.0,0.00013698,2]
[383820153,1757131841124,-480.0,0.00013698,2]
[383820155,1757131841133,-480.95331196,0.00013698,2]
[383820157,1757131841142,-480.0,0.00013698,2]
[383820159,1757131841151,-480.0,0.00013698,2]
[383820161,1757131841161,-480.74911173,0.00013698,2]
[383820163,1757131841170,-480.85023598,0.00013698,2]
[383820165,1757131841179,-480.0,0.00013698,2]
[383820167,1757131841188,-480.0,0.00013698,2]
[383820169,1757131841197,-480.0,0.00013698,2]
[383820171,1757131841207,-480.0,0.00013698,2]
[383820173,1757131841216,-480.0,0.00013698,2]
[383820175,1757131841226,-480.0,0.00013698,2]
[383820177,1757131841235,-480.0,0.00013698,2]
[383820179,1757131841244,-480.0,0.00013698,2]
[383820181,1757131841254,-480.0,0.00013698,2]
[383820183,1757131841263,-480.0,0.00013698,2]
[383820185,1757131841272,-480.0,0.00013698,2]
[383820187,1757131841281,-480.0,0.00013698,2]
[383820189,1757131841290,-480.0,0.00013698,2]
[383820191,1757131841300,-480.0,0.00013698,2]
[383820193,1757131841309,-480.0,0.00013698,2]
[383820195,1757131841318,-480.0,0.00013698,2]
[383820197,1757131841327,-480.0,0.00013698,2]
[383820199,1757131841336,-480.0,0.00013698,2]
[383820201,1757131841345,-480.0,0.00013698,2]
[383820203,1757131841355,-480.0,0.00013698,2]
[383820205,1757131841364,-480.0,0.00013698,2]
[383820206,1757131841373,-480.0,0.00013698,2]
[383820208,1757131841383,-480.0,0.00013698,2]
[383820210,1757131841392,-480.0,0.00013698,2]
[383820212,1757131841401,-480.0,0.00013698,2]
[383820215,1757131841411,-480.0,0.00013698,2]
[383820216,1757131841420,-480.0,0.00013698,2]
[383820218,1757131841430,-480.0,0.00013698,2]
[383820220,1757131841439,-480.76751739,0.00013698,2]
[383820222,1757131841448,-480.0,0.00013698,2]
[383820224,1757131841457,-480.0,0.00013698,2]
[383820226,1757131841466,-480.0,0.00013698,2]
[383820228,1757131841476,-480.85369926,0.00013698,2]
[383820230,1757131841485,-480.0,0.00013698,2]
[383820232,1757131841495,-480.0,0.00013698,2]
[383820235,1757131841505,-480.0,0.00013698,2]
[383820236,1757131841514,-481.16648292,0.00013698,2]
[383820238,1757131841524,-480.0,0.00013698,2]
[383820241,1757131841534,-480.33420021,0.00013698,2]
[383820242,1757131841543,-480.0,0.00013698,2]
[383820245,1757131841553,-480.84536823,0.00013698,2]
[383820247,1757131841564,-480.0,0.00013698,2]
[383820248,1757131841575,-425.45317379,0.00013698,2]
[383820250,1757131841585,-480.0,0.00013698,2]
[383820252,1757131841594,-480.0,0.00013698,2]
[383820254,1757131841603,-480.0,0.00013698,2]
[383820256,1757131841613,-480.0,0.00013698,2]
[383820258,1757131841622,-409.7427939,0.00013698,2]
[383820260,1757131841631,-480.0,0.00013698,2]
[383820262,1757131841642,-480.0,0.00013698,2]
[383820264,1757131841652,-480.0,0.00013698,2]
[383820266,1757131841662,-480.0,0.00013698,2]
[383820268,1757131841672,-480.0,0.00013698,2]
[383820270,1757131841681,-480.0,0.00013698,2]
[383820272,1757131841689,-480.0,0.00013698,2]
[383820274,1757131841698,-480.0,0.00013698,2]
[383820276,1757131841707,-480.0,0.00013698,2]
[383820278,1757131841716,-483.76161182,0.00013698,2]
[383820280,1757131841725,-480.0,0.00013698,2]
[383820282,1757131841734,-422.78844792,0.00013698,2]
[383820284,1757131841743,-480.0,0.00013698,2]
[383820286,1757131841755,-480.0,0.00013698,2]
[383820288,1757131841763,-481.49964003,0.00013698,2]
[383820290,1757131841772,-480.0,0.00013698,2]
[383820292,1757131841782,-481.4639799,0.00013698,2]
[383820294,1757131841791,-480.0,0.00013698,2]
[383820296,1757131841800,-480.0,0.00013698,2]
[383820298,1757131841809,-1003.63819518,0.00013698,2]
[383820300,1757131841819,-480.0,0.00013698,2]
[383820302,1757131841828,-480.0,0.00013698,2]
[383820304,1757131841837,-480.0,0.00013698,2]
[383820306,1757131841846,-480.0,0.00013698,2]
[383820308,1757131841857,-482.73741217,0.00013698,2]
[383820310,1757131841869,-394.05088475,0.00013698,2]